Cogmind - Beta 11 X5 @@@ ROGUE MODE // 2021.07.06 @ 19:49:46 Player: Terminus Result: Destroyed by Enhanced Grunt with Neutron Cannon Performance ------------- Evolutions (3) 1500 Regions Visited (9) 1800 Robots Destroyed (216) 1080 Value Destroyed (5521) 5521 Prototype IDs (17) 340 Alien Tech Used (1) 200 Bonus (729) 729 TOTAL SCORE: 11170 Bonus ------- High Alert Combat Kills 514 Follower Combat Kills 42 Met Data Miner 300 Friendly Fire -127 Cogmind --------- Core Integrity 0/700 Matter 300/300 Energy 23/100 System Corruption 3% Temperature Cool (6) Movement Core (50) Location -7/Data Miner Parts ------- > --- POWER (2) -------- (None) > --- PROPULSION (3) --- (None) > --- UTILITY (6) ------ (None) > --- WEAPON (3) ------- (None) > --- INVENTORY (5) ---- Improved Heat Sink System Mapper Ghost Barrier Quantum Router Makeshift Spear Peak State ------------ > --- POWER ------------ Improved Ion Engine Light Angular Momentum Engine > --- PROPULSION ------- Armored Treads Advanced Treads Advanced Treads > --- UTILITY ---------- Advanced Heat Sink Huge Storage Unit Improved Signal Interpreter Advanced Targeting Computer Hardened Heavy Armor Plating > --- WEAPON ----------- Improved Assault Rifle Great Axe Makeshift Spear > --- INVENTORY -------- Light Angular Momentum Engine Medium Treads Improved Heat Sink Improved Cooling System High-capacity Matter Pod Improved Sensor Array Advanced Targeting Computer Weapon Cycler Reactive Plating Hacking Suite System Mapper Long-range Tractor Beam Long-range Tractor Beam Cooled Particle Cannon Heavy Assault Rifle Heavy Assault Rifle Improved Assault Rifle Improved Assault Rifle Improved Assault Rifle Improved Light Cannon Advanced Assault Cannon Dirty Datajack Dirty Datajack Plasma Cutter [Rating: 55] Favorites ----------- Power Improved Ion Engine Engine Improved Ion Engine Propulsion Light Treads Treads Light Treads Utility Improved Heat Sink Device Improved Heat Sink Storage Huge Storage Unit Processor Advanced Targeting Computer Hackware Hacking Suite Protection Medium Armor Plating Weapon Improved Assault Rifle Energy Gun Medium Laser Energy Cannon Cooled Particle Cannon Ballistic Gun Improved Assault Rifle Ballistic Cannon Light Cannon Launcher Missile Launcher Special Weapon Plasma Cutter Slashing Weapon Great Axe Piercing Weapon Makeshift Spear Special Melee Weapon Dirty Datajack Build | -11 -10 -10 -9 -9 -8 -7 -7 -7 -7 ------- Run | Scr Mat Min Mat Min Mat Fac Low Low Dat Slots Evolved 6 | . . . 2 . 2 2 . . . Power . | . . . . . . . . . . Propulsion 1 | . . . . . 1 . . . . Utility 4 | . . . 1 . 1 2 . . . Weapon 1 | . . . 1 . . . . . . Parts Attached 168 | 6 7 4 34 2 36 53 3 7 16 Power 12 | 1 2 . 2 . 4 1 1 . 1 Engine 12 | 1 2 . 2 . 4 1 1 . 1 Core . | . . . . . . . . . . Reactor . | . . . . . . . . . . Propulsion 29 | 2 1 1 6 . 11 7 . . 1 Treads 29 | 2 1 1 6 . 11 7 . . 1 Leg . | . . . . . . . . . . Wheel . | . . . . . . . . . . Hover . | . . . . . . . . . . Flight . | . . . . . . . . . . Utility 61 | 1 3 1 10 . 8 30 1 3 4 Device 25 | . 2 . 3 . . 16 1 2 1 Storage 3 | 1 1 . . . 1 . . . . Processor 2 | . . . . . 1 1 . . . Hackware 3 | . . . . . 2 1 . . . Protection 28 | . . 1 7 . 4 12 . 1 3 Artifact . | . . . . . . . . . . Weapon 66 | 2 1 2 16 2 13 15 1 4 10 Energy Gun 2 | 1 . . 1 . . . . . . Energy Cannon 2 | . . . . . . 1 . . 1 Ballistic Gun 36 | 1 . . 9 1 8 10 . 2 5 Ballistic Cannon 7 | . 1 1 3 . . . . . 2 Launcher 12 | . . 1 3 1 3 4 . . . Special Weapon 3 | . . . . . 2 . . 1 . Impact Weapon . | . . . . . . . . . . Slashing Weapon 2 | . . . . . . . 1 . 1 Piercing Weapon 1 | . . . . . . . . . 1 Special Melee Weapon 1 | . . . . . . . . 1 . Unidentified Prototypes 4 | . . . 2 . . 1 1 . . Parts Lost 39 | . . 1 . . 7 10 . 1 20 Power 5 | . . . . . 1 1 . . 3 Propulsion 8 | . . 1 . . . 3 . . 4 Utility 11 | . . . . . 4 1 . 1 5 Weapon 15 | . . . . . 2 5 . . 8 Highest Loss Streak 20 | . . 1 . . 3 5 . 1 20 Average Slot Usage (%) 99 | . 99 100 99 100 98 99 100 100 91 Engine 10 | . 14 14 11 11 9 7 7 14 13 Treads 24 | . 28 28 22 22 27 22 22 21 18 Device 11 | . 13 7 11 11 9 13 14 13 10 Storage 9 | . 14 14 11 11 9 7 7 7 7 Processor 5 | . . . . . 1 15 14 14 14 Hackware 2 | . . . . . 3 5 7 7 4 Protection 6 | . . 6 10 11 11 2 . . 2 Ballistic Gun 23 | . 14 14 29 32 26 22 16 17 15 Ballistic Cannon 1 | . 6 13 2 . . . . . . Naked Turns 4 | . . . . . . . . . 4 Heaviest Build 126 | 14 33 35 44 44 115 110 108 114 126 Greatest Support 65 | 40 40 40 40 40 60 65 64 64 64 Greatest Overweight (x) 4 | 4 . . 1 1 1 1 1 1 1 Average Overweight (x) . | . . . . 1 1 1 1 1 . Largest Inventory Capacity 25 | 8 15 15 15 15 25 25 25 25 25 Average Capacity 20 | 7 13 15 15 15 24 25 25 25 24 Most Carried 25 | 1 15 15 15 15 25 25 24 25 25 Average Carried 18 | . 10 14 14 15 22 24 19 24 22 Final Capacity 25 | 8 15 15 15 15 25 25 25 25 5 Final Carried 25 | 1 15 15 15 15 25 18 23 25 5 Class Distribution -------------------- 40% | Scavenger-Tank 22% | Mutant 20% | Scavenger-Skirmisher 4% | Tank 4% | Scavenger-Gunner 3% | Gunner Dominant Class ---------------- Mutant | -10/Materials Mutant | -10/Mines Scavenger-Tank | -9/Materials Scavenger-Tank | -9/Mines Scavenger-Tank | -8/Materials Scavenger-Skirmisher | -7/Factory Mutant | -7/Lower Caves Scavenger-Skirmisher | -7/Lower Caves Scavenger-Skirmisher | -7/Data Miner Resources | -11 -10 -10 -9 -9 -8 -7 -7 -7 -7 ----------- Run | Scr Mat Min Mat Min Mat Fac Low Low Dat Matter Collected 6201 | 254 495 125 1213 145 1388 1990 47 285 259 Remotely 633 | . . . . . . 633 . . . Salvage Created 7541 | . 826 119 1667 198 1800 2275 . 470 186 Parts 494 | . 50 12 123 21 118 127 . 35 8 Haulers Intercepted 18 | . 2 . 6 . 6 4 . . . Recyclers Shooed 8 | . 1 . 3 . 1 3 . . . Parts Field Recycled . | . . . . . . . . . . Retrieved Matter . | . . . . . . . . . . Parts Self-Destructed 10 | . . . . . . . . 10 . Prevented . | . . . . . . . . . . Kills | -11 -10 -10 -9 -9 -8 -7 -7 -7 -7 ------- Run | Scr Mat Min Mat Min Mat Fac Low Low Dat Combat Hostiles Destroyed 142 | . 19 5 32 16 27 37 . 4 2 Guns 94 | . 12 1 18 9 21 28 . 4 1 Cannons 11 | . 6 1 3 . . . . . 1 AOE 36 | . . 3 11 7 6 9 . . . Classes Destroyed 15 | . 6 1 3 . 1 3 . 1 . Worker 11 | . 1 1 4 . 2 3 . . . Builder 12 | . . . 3 . 1 8 . . . Tunneler 2 | . . 1 . 1 . . . . . Hauler 18 | . 2 . 6 . 6 4 . . . Recycler 11 | . 1 1 2 . 4 3 . . . Operator 6 | . . . 2 . 3 1 . . . Watcher 13 | . 1 . 4 . 4 4 . . . Swarmer 48 | . 6 3 10 16 7 4 . 2 . Grunt 60 | . 13 2 13 . 9 22 . 1 . Brawler 1 | . . . . . . 1 . . . Protector 1 | . . . . . . 1 . . . Sentry 21 | . . . 9 . 9 2 . 1 . Hunter 4 | . . . . . 2 2 . . . Programmer 5 | . . . . . . 5 . . . Enhanced Grunt 2 | . . . . . . . . . 2 Samaritan 5 | . . . . . . . . 5 . Best Kill Streak 10 | . 4 3 9 7 7 10 . 4 1 Combat Bots Only 8 | . 3 3 8 7 5 5 . 4 1 Max Kills in Single Turn 7 | . 1 3 3 4 3 7 . 1 1 Gunslinging 1 | . . . 1 1 1 . . . . Exploded 4 | . . 3 3 4 3 3 . . . Melee . | . . . . . . . . . . Uniques/NPCs Destroyed 1 | . . . . . . . . . 1 Data Miner (-7/Data Miner) Combat | -11 -10 -10 -9 -9 -8 -7 -7 -7 -7 -------- Run | Scr Mat Min Mat Min Mat Fac Low Low Dat Damage Taken 8679 | . 520 236 838 243 1500 2318 25 604 2395 Core 1090 | . 76 61 69 14 155 212 . 55 448 Absorbed by Shields . | . . . . . . . . . . Core Remaining (%) 73 | 100 . 45 . 79 71 . . . . Volleys Fired 459 | . 61 11 91 14 113 116 . 32 21 Largest 3 | . 2 2 3 3 3 3 . 3 3 Hottest 110 | . 70 55 78 69 73 76 . 69 110 Shots Fired 1197 | . 121 21 263 36 306 322 . 75 53 Gun 1055 | . 106 10 203 33 288 311 . 64 40 Cannon 93 | . 15 10 55 . . . . . 13 Launcher 25 | . . 1 5 3 5 11 . . . Special 24 | . . . . . 13 . . 11 . Kinetic 1098 | . 76 20 258 33 288 311 . 64 48 Thermal 74 | . 45 . . . 13 . . 11 5 Explosive 25 | . . 1 5 3 5 11 . . . Electromagnetic . | . . . . . . . . . . Robot Hit Streak 36 | . 22 8 16 4 26 26 . 35 36 Robot Miss Streak 8 | . 8 3 6 4 5 3 . 1 1 Penetration Max 1 | . . . . . . 1 . . . Secondary Targets 15 | . 1 . 1 3 5 4 . 1 . Max Gunslinging Chain 1 | . 1 . 1 1 1 1 . 1 . Shots Hit Robots 822 | . 86 14 157 15 215 225 . 62 48 Core Hits 376 | . 35 9 75 17 81 121 . 23 15 Critical Kills 1 | . . . . . 1 . . . . Critical Parts Destroyed 15 | . 1 . 4 . 6 3 . 1 . Critical Strikes 23 | . 6 . 6 . 7 3 . 1 . Burn 5 | . 5 . . . . . . . . Destroy 17 | . 1 . 5 . 7 3 . 1 . Blast 1 | . . . 1 . . . . . . Melee Attacks 21 | . . . . . . . 13 3 5 Impact . | . . . . . . . . . . Slashing 13 | . . . . . . . 13 . . Piercing 8 | . . . . . . . . 3 5 Sneak Attacks 1 | . . . . . . . . . 1 Combat Hostiles . | . . . . . . . . . . Follow-up Attacks . | . . . . . . . . . . Damage Inflicted 17037 | . 1203 402 3156 716 4195 5501 . 890 974 Guns 11893 | . 977 73 1965 257 3320 4001 . 771 529 Cannons 1238 | . 212 143 514 . . . . . 369 Explosions 3435 | . . 159 656 441 774 1405 . . . Melee 81 | . . . . . . . . 5 76 Ramming 231 | . 14 27 21 18 56 95 . . . Kinetic 12576 | . 817 216 2479 257 3320 4001 . 771 715 Thermal 714 | . 372 . . . 45 . . 114 183 Explosive 3435 | . . 159 656 441 774 1405 . . . Electromagnetic . | . . . . . . . . . . Impact . | . . . . . . . . . . Slashing . | . . . . . . . . . . Piercing 81 | . . . . . . . . 5 76 Highest Corruption 3 | . . . . . . 3 3 3 3 Average Corruption 2 | . . . . . . 1 3 3 3 Corruption Purged . | . . . . . . . . . . Effects 56 | . . . . . . 15 23 14 4 Message Errors 19 | . . . . . . 7 8 3 1 Matter Fused 8 | . . . . . . 1 5 1 1 Heat Flow Errors 9 | . . . . . . 2 4 3 . Energy Discharges 10 | . . . . . . 1 3 5 1 Data Loss (minor) 8 | . . . . . . 3 3 1 1 Weapon Failures 2 | . . . . . . 1 . 1 . Overload Shots 5 | . . . . . . . . . 5 Overflow Damage 82 | . . 1 3 . 8 8 . 32 30 Projectiles 63 | . . 1 . . . . . 32 30 Explosions 16 | . . . 3 . 8 5 . . . Melee 3 | . . . . . . 3 . . . Knockbacks 13 | . 2 6 1 1 2 . . . 1 Impact 4 | . . 1 . 1 2 . . . . Kinetic 9 | . 2 5 1 . . . . . 1 Secondary . | . . . . . . . . . . Self-Inflicted Damage 41 | . . . . 26 . 15 . . . Shots 2 | . . . . 1 . 1 . . . Rammed 30 | . 4 1 5 3 8 9 . . . Targets Rammed 37 | . 5 4 6 4 9 9 . . . Kicked . | . . . . . . . . . . Crushed 7 | . 1 3 1 1 1 . . . . Highest Temperature 251 | . 24 16 17 . 37 189 251 251 90 Average Temperature 30 | . 7 6 5 . 10 37 99 86 27 Received Heat Transfer 2613 | . 234 147 288 . 585 927 . 120 312 Siege Activations . | . . . . . . . . . . Robots Corrupted . | . . . . . . . . . . Combat Hostiles . | . . . . . . . . . . Parts Fried . | . . . . . . . . . . Impact Corruptions 2 | . . . . . . 2 . . . Robots Melted 1 | . 1 . . . . . . . . Combat Hostiles 1 | . 1 . . . . . . . . Parts Melted 3 | . 3 . . . . . . . . Heat Transferred 2248 | . 1480 . . . 148 . . 370 250 Parts Sabotaged . | . . . . . . . . . . Parts Stolen . | . . . . . . . . . . Parts Stripped . | . . . . . . . . . . Power Chain Reactions . | . . . . . . . . . . Missiles Intercepted . | . . . . . . . . . . Alert | -11 -10 -10 -9 -9 -8 -7 -7 -7 -7 ------- Run | Scr Mat Min Mat Min Mat Fac Low Low Dat Peak Influence 941 | . 308 209 416 272 252 941 . . . Initial 88 | . . 84 1 57 18 88 . . . Average 205 | . 143 50 137 153 166 425 . . . Maximum Alert Level 3 | . 1 1 2 1 1 3 . . . Low Security (%) 58 | 100 62 88 78 57 63 21 . . . Level 1 29 | . 37 11 21 42 36 27 . . . Level 2 8 | . . . . . . 34 . . . Level 3 3 | . . . . . . 15 . . . Level 4 . | . . . . . . . . . . Level 5 . | . . . . . . . . . . High Security . | . . . . . . . . . . Max Security . | . . . . . . . . . . Squads Dispatched 22 | . 3 . 4 . 1 14 . . . Investigation 5 | . 3 . 2 . . . . . . Extermination 5 | . . . . . . 5 . . . Reinforcement 9 | . . . 2 . 1 6 . . . Assault 2 | . . . . . . 2 . . . Garrison 1 | . . . . . . 1 . . . Intercept . | . . . . . . . . . . Construction Impeded 4 | . . . 1 . . 3 . . . Haulers Reinforced 1 | . . . . . . 1 . . . Cargo Convoy Interrupts 1 | . . . . . . 1 . . . Stealth | -11 -10 -10 -9 -9 -8 -7 -7 -7 -7 --------- Run | Scr Mat Min Mat Min Mat Fac Low Low Dat Distress Signals 15 | . 4 . 4 . 4 3 . . . Communications Jammed . | . . . . . . . . . . Distress Signals . | . . . . . . . . . . Times Spotted 205 | . 28 6 41 22 45 51 1 7 4 Peak Tracking Total 7 | . 4 3 7 5 5 5 1 5 3 Tactical Retreats 10 | . 1 1 . 3 1 2 1 1 . Traps | -11 -10 -10 -9 -9 -8 -7 -7 -7 -7 ------- Run | Scr Mat Min Mat Min Mat Fac Low Low Dat Traps Triggered 1 | . 1 . . . . . . . . Indirectly . | . . . . . . . . . . Trap Hack Attempts . | . . . . . . . . . . Triggered . | . . . . . . . . . . Disarmed . | . . . . . . . . . . Reprogrammed . | . . . . . . . . . . Reused . | . . . . . . . . . . Traps Extracted . | . . . . . . . . . . Installed . | . . . . . . . . . . Triggered 1 | . . . . . . 1 . . . Machines | -11 -10 -10 -9 -9 -8 -7 -7 -7 -7 ---------- Run | Scr Mat Min Mat Min Mat Fac Low Low Dat Machines Disabled 11 | . 1 1 1 1 5 1 . . 1 Max in Single Turn 1 | . 1 1 1 . 1 1 . . 1 Machines Sabotaged . | . . . . . . . . . . Garrisons Compromised 1 | . . . . . . 1 . . . Overloaded Fab Kills . | . . . . . . . . . . Fab Network Shutdowns . | . . . . . . . . . . Hacking | -11 -10 -10 -9 -9 -8 -7 -7 -7 -7 --------- Run | Scr Mat Min Mat Min Mat Fac Low Low Dat Machines Accessed 40 | . 8 1 12 . 10 3 1 1 4 Terminals 25 | . 6 . 9 . 9 1 . . . Fabricators 1 | . . . . . . 1 . . . Repair Stations 3 | . . . 2 . . 1 . . . Recycling Units 4 | . 2 . 1 . 1 . . . . Scanalyzers . | . . . . . . . . . . Garrison Access . | . . . . . . . . . . Total Hacks 119 | . 21 1 37 . 23 5 1 1 30 Successful 87 | . 12 1 25 . 14 3 1 1 30 Failed 32 | . 9 . 12 . 9 2 . . . Catastrophic 3 | . . . 2 . . 1 . . . Database Lockouts . | . . . . . . . . . . Manual 58 | . 20 . 17 . 19 2 . . . Terminals 68 | . 19 . 26 . 22 1 . . . Fabricators 1 | . . . . . . 1 . . . Repair Stations 13 | . . . 10 . . 3 . . . Recycling Units 4 | . 2 . 1 . 1 . . . . Scanalyzers . | . . . . . . . . . . Garrison Access . | . . . . . . . . . . Terminal Hacks 54 | . 4 1 10 . 7 . 1 1 30 Record 12 | . . . . . . . . 1 11 Part Schematic 10 | . . . . . 1 . . . 9 Robot Schematic 7 | . . . . . . . . . 7 Prototype ID Bank 4 | . . . 1 . . . . . 3 Open Door 2 | . . 1 . . . . 1 . . Branch Access Points 2 | . . . 1 . 1 . . . . Terminal Index 2 | . 1 . . . 1 . . . . Alert Level 4 | . . . 3 . 1 . . . . Unreport Threat 3 | . . . 2 . 1 . . . . Hauler Manifests 3 | . 1 . 1 . 1 . . . . Zone Layout 5 | . 2 . 2 . 1 . . . . Fabricator Hacks . | . . . . . . . . . . Repair Station Hacks 10 | . . . 8 . . 2 . . . Scan Component 6 | . . . 5 . . 1 . . . Repair 4 | . . . 3 . . 1 . . . Recycling Unit Hacks . | . . . . . . . . . . Scanalyzer . | . . . . . . . . . . Garrison Access Hacks . | . . . . . . . . . . Unauthorized Hacks 23 | . 8 . 7 . 7 1 . . . Terminals 18 | . 6 . 6 . 6 . . . . Assimilate 1 | . . . . . 1 . . . . Botnet 16 | . 6 . 6 . 4 . . . . Operators 1 | . . . . . 1 . . . . Fabricators 1 | . . . . . . 1 . . . Haulers 1 | . . . . . . 1 . . . Repair Stations . | . . . . . . . . . . Recycling Units 4 | . 2 . 1 . 1 . . . . Reject 1 | . . . . . 1 . . . . Tunnel 3 | . 2 . 1 . . . . . . Scanalyzers . | . . . . . . . . . . Garrison Access . | . . . . . . . . . . Data Cores Recovered . | . . . . . . . . . . Used . | . . . . . . . . . . Hacking Detections 28 | . 6 . 11 . 9 2 . . . Full Trace Events 1 | . . . 1 . . . . . . Feedback Events . | . . . . . . . . . . Feedback Blocked . | . . . . . . . . . . Robot Schematics Acquired 7 | . . . . . . . . . 7 Robots Built . | . . . . . . . . . . Matter . | . . . . . . . . . . Time . | . . . . . . . . . . Total Robot Build Rating . | . . . . . . . . . . Part Schematics Acquired 10 | . . . . . 1 . . . 9 Parts Built . | . . . . . . . . . . Matter . | . . . . . . . . . . Time . | . . . . . . . . . . Total Part Build Rating . | . . . . . . . . . . Parts Repaired 4 | . . . 3 . . 1 . . . Time 166 | . . . 134 . . 32 . . . Parts Recycled . | . . . . . . . . . . Recycled Matter . | . . . . . . . . . . Retrieved Matter . | . . . . . . . . . . Retrieved Components . | . . . . . . . . . . Parts Scanalyzed . | . . . . . . . . . . Part Schematics Acquired . | . . . . . . . . . . Parts Damaged . | . . . . . . . . . . Bothacking | -11 -10 -10 -9 -9 -8 -7 -7 -7 -7 ------------ Run | Scr Mat Min Mat Min Mat Fac Low Low Dat Used RIF Installer . | . . . . . . . . . . Robots Hacked . | . . . . . . . . . . Non-combat . | . . . . . . . . . . Combat . | . . . . . . . . . . Robot Hacks Applied . | . . . . . . . . . . Relay Couplers Released . | . . . . . . . . . . Robots Rewired . | . . . . . . . . . . Allies Hacked . | . . . . . . . . . . Hacks Repelled . | . . . . . . . . . . Allies | -11 -10 -10 -9 -9 -8 -7 -7 -7 -7 -------- Run | Scr Mat Min Mat Min Mat Fac Low Low Dat Total Allies 24 | . . . . 4 1 18 . 1 . Largest Group 17 | . . . . 4 1 17 . 1 . Highest-Rated Group 633 | . . . . 71 10 633 . 12 . Highest-Rated Ally 74 | . . . . 31 10 74 . 12 . Total Orders 1 | . . . . . 1 . . . . STAY 1 | . . . . . 1 . . . . Ally Attacks 36 | . . . . 7 . 23 . 6 . Total Damage 822 | . . . . 73 . 693 . 56 . Kills 10 | . . . . 2 . 7 . 1 . Allies Corrupted 1 | . . . . . . 1 . . . Allies Melted . | . . . . . . . . . . Intel | -11 -10 -10 -9 -9 -8 -7 -7 -7 -7 ------- Run | Scr Mat Min Mat Min Mat Fac Low Low Dat Robot Analysis Total . | . . . . . . . . . . Derelict Logs Recovered 4 | . . 1 . 1 . . . 2 . Drone Launches . | . . . . . . . . . . Drone Recoveries . | . . . . . . . . . . Exploration | -11 -10 -10 -9 -9 -8 -7 -7 -7 -7 ------------- Run | Scr Mat Min Mat Min Mat Fac Low Low Dat Turns Passed 17747 | 87 1523 1176 3376 1510 3940 3455 1345 1026 309 Spaces Moved 6582 | 49 731 648 1294 554 1300 1092 474 352 88 Core 24 | 17 . . . . . . . . 7 Treads 6558 | 32 731 648 1294 554 1300 1092 474 352 81 Legs . | . . . . . . . . . . Wheels . | . . . . . . . . . . Hover . | . . . . . . . . . . Flight . | . . . . . . . . . . Fastest Speed 50 | 50 160 160 160 260 260 253 253 253 50 Average Speed 228 | 158 160 160 216 260 260 260 253 253 236 Slowest Speed 263 | 250 160 160 260 260 260 263 253 253 253 Overloaded Moves . | . . . . . . . . . . Propulsion Burnouts . | . . . . . . . . . . Robots Hopped . | . . . . . . . . . . Cave-ins Triggered . | . . . . . . . . . . Exploration Rate (%) 70 | 5 92 98 97 97 96 27 61 55 77 Regions Visited 9 Branch Regions 5 Pre-discovered Areas 5 | . 2 1 1 . . . . . 1 Known Exits Taken 5 | . . . 1 1 . 1 1 1 . Unknown Exits Taken 4 | 1 1 1 . . 1 . . . . Scrap Searched 8 | . . 1 . 1 . . 3 3 . Spaces Dug 84 | . . 10 . 26 35 . 13 . . Terrain Destroyed 150 | . . 10 22 26 41 38 13 . . Melee 13 | . . . . . . . 13 . . Projectile 4 | . . . . . . 4 . . . AOE 133 | . . 10 22 26 41 34 . . . Terrain Rammed . | . . . . . . . . . . Walls Destroyed . | . . . . . . . . . . Machines Disabled . | . . . . . . . . . . Actions | -11 -10 -10 -9 -9 -8 -7 -7 -7 -7 --------- Run | Scr Mat Min Mat Min Mat Fac Low Low Dat Total 8302 | 55 962 763 1677 589 1628 1477 597 410 144 Wait 863 | . 133 92 198 16 127 180 101 13 3 Move 6573 | 48 730 647 1293 553 1299 1091 473 351 88 Hop . | . . . . . . . . . . Pick Up 89 | 1 18 3 19 . 25 12 5 3 3 Fast Attach 18 | 6 1 . 6 . . 3 2 . . Attach 38 | . . 1 3 . 9 12 1 1 11 Detach 1 | . . . . . . 1 . . . Swap 113 | . 6 3 25 2 27 38 1 6 5 Drop 89 | . 8 2 36 . 19 15 1 . 8 Fire 459 | . 61 11 91 14 113 116 . 32 21 Melee 21 | . . . . . . . 13 3 5 Ram . | . . . . . . . . . . Kick . | . . . . . . . . . . Crush 37 | . 5 4 6 4 9 9 . . . Escape Stasis . | . . . . . . . . . . Rewire 1 | . . . . . . . . 1 . Trap . | . . . . . . . . . . Miscellaneous . | . . . . . . . . . . Route ------- -11/Scrapyard -10/Materials (discovered 5 exits: *Mat x3 / *Min x2) -10/Mines (discovered 2 exits: *Mat x2) -9/Materials (discovered 5 exits: *Mat x3 / *Min x2) -9/Mines (discovered 2 exits: *Mat x2) -8/Materials (discovered 3 exits: *Fac x3) -7/Factory (discovered 2 exits: *Fac / *Low) -7/Lower Caves -7/Lower Caves -7/Data Miner (discovered 1 exit: [*Pro]) History --------- Turn | Location | Event 17 | -11/Scrapyard | Discovered new exit (range 16) 88 | -11/Scrapyard | Entered Materials 296 | -10/Materials | Discovered new exit (range 4) 318 | -10/Materials | Build established: Mutant 547 | -10/Materials | Discovered new exit (range 13) 547 | -10/Materials | Discovered new exit (range 15) 752 | -10/Materials | Discovered new exit (range 16) 1213 | -10/Materials | Discovered new exit (range 13) 1611 | -10/Materials | Entered Mines 1612 | -10/Mines | Assembled infested the area 1714 | -10/Mines | Discovered new exit (range 7) 1855 | -10/Mines | Core integrity fell below 50% 1963 | -10/Mines | Discovered new exit (range 9) 2170 | -10/Mines | A weapon hastily lodged in a ceiling crevice suddenly fell to the ground 2346 | -10/Mines | Met a Derelict who couldn't figure out how to use a Trap Extractor 2438 | -10/Mines | Learned location of Mines (-9) 2787 | -10/Mines | Entered Materials 2787 | -9/Materials | Evolved 2 slots: Utility x1, Weapon x1 3085 | -9/Materials | Build established: Tank 3205 | -9/Materials | Discovered new exit (range 11) 3332 | -9/Materials | Destroyed 8 combat bots 3482 | -9/Materials | Build established: Scavenger-Tank 3773 | -9/Materials | Discovered new exit (range 12) 3986 | -9/Materials | Identified exit to Mines 4401 | -9/Materials | Discovered new exit (range 16) 5303 | -9/Materials | Repaired Med. Armor Plating 5355 | -9/Materials | Repaired Imp. Assault Rifle 5444 | -9/Materials | Repaired Imp. Assault Rifle 5567 | -9/Materials | Discovered new exit (range 15) 6163 | -9/Materials | Entered Mines 6194 | -9/Mines | Destroyed 7 combat bots 6231 | -9/Mines | Identified exit to Materials 6524 | -9/Mines | Received a Rocket Launcher from a helpful Derelict 6559 | -9/Mines | Discovered exit to Materials (range 9) 6831 | -9/Mines | Assisted by bots powering up and referring to "LRC-V3" 7005 | -9/Mines | Received a Mining Laser from a helpful Derelict 7673 | -9/Mines | Entered Materials 7673 | -8/Materials | Evolved 2 slots: Propulsion x1, Utility x1 8613 | -8/Materials | Lost 3 parts (1u2w) 8691 | -8/Materials | Build established: Tank 9239 | -8/Materials | Build established: Scavenger-Tank 9709 | -8/Materials | Discovered new exit (range 16) 9953 | -8/Materials | Discovered new exit (range 15) 10811 | -8/Materials | Discovered new exit (range 9) 11579 | -8/Materials | Build established: Gunner 11613 | -8/Materials | Entered Factory 11613 | -7/Factory | Evolved 2 slots: Utility x2 11910 | -7/Factory | Build established: Scavenger-Skirmisher 12004 | -7/Factory | Repaired Autogun 12312 | -7/Factory | Discovered new exit (range 5) 12360 | -7/Factory | Cargo convoy interrupted 12420 | -7/Factory | Identified exit to Lower Caves 12758 | -7/Factory | Discovered new exit (range 10) 12789 | -7/Factory | Identified exit to Factory 14413 | -7/Factory | First assault squad dispatched 14646 | -7/Factory | Garrison activated, responded to threat 14933 | -7/Factory | Lost 5 parts (1n1u3w) 15068 | -7/Factory | Entered Lower Caves 15260 | -7/Lower Caves | Build established: Skirmisher 15646 | -7/Lower Caves | Build established: Mutant 16102 | -7/Lower Caves | Spotted B-75 Beast 16362 | -7/Lower Caves | Discovered new exit (range 5) 16369 | -7/Lower Caves | Identified exit to Lower Caves 16390 | -7/Lower Caves | Found Alien Artifact 16390 | -7/Lower Caves | Identified Core Expander 16390 | -7/Lower Caves | Installed Core Expander, added new Power slot 16413 | -7/Lower Caves | Entered another Lower Caves area 16415 | -7/Lower Caves | Attracted the attention of an 0b10 checkpoint 16793 | -7/Lower Caves | Build established: Scavenger-Skirmisher 16804 | -7/Lower Caves | Learned Factory emergency access door positions 17144 | -7/Lower Caves | Identified exit to Data Miner 17439 | -7/Lower Caves | Entered Data Miner 17439 | -7/Data Miner | Discovered new exit (range 6) 17488 | -7/Data Miner | Met Data Miner 17543 | -7/Data Miner | Learned location of Section 7 (-2) 17543 | -7/Data Miner | Acquired the access code to Warlord's prototype stash 17579 | -7/Data Miner | Received God Mode back door access code from Data Miner 17636 | -7/Data Miner | Destroyed Data Miner 17640 | -7/Data Miner | Found Prototype Hackware 17641 | -7/Data Miner | Data Conduit disabled 17704 | -7/Data Miner | Core integrity fell below 50% 17745 | -7/Data Miner | Found Prototype Hackware 17746 | -7/Data Miner | Core integrity fell below 20% 17747 | -7/Data Miner | Found Prototype Hackware 17748 | -7/Data Miner | Destroyed by Enhanced Grunt with Neutron Cannon Last Messages --------------- 17725_ Imp. Light Cannon destroyed. 17726_ Reactive Plating destroyed. 17727_ Adv. Assault Cannon destroyed. 17727_ Adv. Heat Sink destroyed. 17727_ Imp. Assault Rifle destroyed. 17729_ Adv. Treads destroyed. 17729_ Enhanced Grunt destroyed. 17738_ Destroyed Adv. Particle Charger. 17738_ Lgt. Angular Momentum Engine destroyed. 17740_ Dropped Huge Storage Unit. 17741_ Dropped Cld. Particle Cannon. 17741_ Cld. Particle Cannon crushed and broken. 17741_ Acquired 59 matter. 17743_ Adv. Targeting Computer destroyed. 17743_ Imp. Signal Interpreter destroyed. 17744_ Dropped Imp. Cooling System. 17745_ Dropped Dirty Datajack. 17745_ Acquired Prototype Hackware. 17747_ Dropped Imp. Sensor Array. 17747_ Acquired Prototype Hackware. Map ----- +----------------------------------------------------+ | | | | | | | | | | | | | | | | | | | | | | | | | | | | | | | ??????????????????????????????????? | | ??????????????????????????????????? | | ??????????????????????????????????? | | ??????????????????????????????????? | | ??????????????????????????????????? | | ????#################?????????????? | | ???##!""%"""""""""""######????????# | | ??##"|*%%"""" """"""""########## | | ??#"!!!%!"""" | | ??#""!!%"g!! | | ??#""!""//@! | | ??#""""""%/= | | ??#"""""" !* | | ??#"""""" g """"""""""" | | ??#"""""""" """"######### | | ????""""""" """""###???????? | | ??????""""""" "#####?????????? | | ??????######"## "#?????????????? | | ???????????#"### "#?????????????? | | ???????????#"### "#?????????????? | | ???????????#"?# "#?????????????? | | ?????????????## "#?????????????? | | ?????????????# "#?????????????? | | ?????????????### "#?????????????? | | ???????????????# "##????????????? | | ??????????????## ""#????????????? | | ???????????#?## ""#????????????? | | ??????????##"#"X ""#????????????? | | ??????????""""" "####?????????? | | ??????????""""" X"""""?????????? | | ??????????##"#"X "##"#?????????? | | ???????????#?## X""""#?????????? | | ??????????????## "##"#?????????? | | ???????????????#######????????????? | | ??????????????????????????????????? | +----------------------------------------------------+ Best States ------------- Heat Dissipation 61 Energy Generation 25 Energy Capacity 315 Matter Stores 300 Matter Capacity 300 Sight Range 16 Robot Scan Range 15 Terrain Scan Density 10 Armor Coverage 600 Resistance: KI 20 Evasion (%) 50 Targeting Accuracy 8 Recoil Reduction 3 Offensive Hacking 10 Item Schematics ----------------- Hacking Suite | -8/Materials | Hacked Combat Drone Bay | -7/Data Miner | Free Lgt. Regenerative Plating | -7/Data Miner | Free Exp. Flexi-carbon Leg | -7/Data Miner | Free Exp. Cesium-ion Thruster | -7/Data Miner | Free Exp. Sensor Array | -7/Data Miner | Free Tactical Coordination Suite | -7/Data Miner | Free Exp. Transmission Jammer | -7/Data Miner | Free Cloaking Device | -7/Data Miner | Free Kinetic Spear | -7/Data Miner | Free Robot Schematics ------------------ S-27 Virus | -7/Data Miner | Free G-50 Soldier | -7/Data Miner | Free L-41 Fighter | -7/Data Miner | Free H-66 Slayer | -7/Data Miner | Free P-70 Sage | -7/Data Miner | Free I-36 Angel | -7/Data Miner | Free I-47 Archangel | -7/Data Miner | Free Fabricated ------------ Nothing Alien Tech Used ----------------- Core Expander Achievements -------------- None Challenges ------------ None Game ------ Seed HelicalFireCharger Manual? 0 Play Time 01:07:55 Cumulative 1306.5 hours Start 2021.07.06 @ 18:44:36 End 2021.07.06 @ 19:49:46 Sessions 1 Manual Loads 0 Difficulty Rogue Special Mode None Game No. 445 Rogue 445 Adventurer 0 Explorer 0 Win Type - Total 94 Types 20/12/37/5/1/2/15/1/1 Lore% 97 Gallery% 96 Achievement% 85 Wizard Run 0 Options --------- ASCII 0 Keyboard 0 Movement Numpad Keybinds 0 Fullscreen 1 Font 18/SmallcapsGlow Map View 76x50 Tactical HUD 1 Map Filters NONE Filters NONE Steam 1 RUN: 415436cb-d603-47f6-88c3-2feb6cc7c5fe